bitfinex-derivatives/quotes_ETHF0:USTF0_20260113
["timestamp","ask_amount","ask_price","bid_price","bid_amount"]
[1768310163332,1.0886036,3138.2,3137.3,0.14285681]
[1768310164139,1.08527677,3138.0,3137.1,2.85191538]
[1768310165838,0.00332683,3138.2,3137.1,2.85191538]
[1768310166039,1.08527677,3138.1,3137.1,2.85191538]
[1768310166444,1.08527677,3138.1,3137.2,1.08527677]
[1768310178349,0.00332683,3138.2,3137.2,1.08527677]
[1768310178549,1.0886036,3138.2,3137.2,1.08527677]
[1768310186254,0.00332683,3138.2,3137.4,1.08527677]
[1768310186555,0.14337827,3138.9,3137.4,1.08527677]
[1768310186748,1.22865504,3138.5,3137.5,2.85191538]
[1768310186950,1.08527677,3138.1,3137.4,2.85191538]
[1768310187147,1.08527677,3138.1,3137.3,2.85191538]
[1768310187347,1.08527677,3138.1,3137.1,2.85191538]
[1768310187548,1.08845317,3138.1,3137.1,2.85191538]
[1768310188657,1.08845317,3138.1,3137.2,1.08527677]
[1768310190455,1.08845317,3138.1,3137.2,3.93719215]
[1768310191150,1.08845317,3138.1,3137.2,1.08527677]
[1768310191348,1.08845317,3138.1,3137.2,3.93719215]
[1768310194959,0.0031764,3138.1,3137.2,3.93719215]
[1768310195159,1.08845317,3138.1,3137.2,3.93719215]
[1768310197757,0.0031764,3138.1,3137.2,3.93719215]
[1768310199163,0.0031764,3138.1,3137.4,1.08527677]
[1768310201653,0.0031764,3138.1,3137.3,3.93719215]
[1768310204360,0.0031764,3138.1,3137.3,2.85191538]
[1768310205463,0.0031764,3138.1,3137.6,1.08527677]
[1768310205651,0.00147315,3138.1,3137.6,1.08527677]
[1768310207069,0.14562364,3138.9,3137.6,1.08527677]
[1768310207363,1.08527677,3138.5,3137.6,1.08527677]
[1768310208066,1.08831459,3138.5,3137.6,1.08527677]
[1768310211066,0.00303782,3138.5,3137.6,1.08527677]
[1768310211268,1.08831459,3138.5,3137.6,1.08527677]
[1768310212365,1.08831459,3138.5,3137.3,2.85191538]
[1768310212668,1.08831459,3138.5,3137.6,1.08527677]
[1768310213370,0.00303782,3138.5,3137.3,3.93657338]
[1768310214669,0.00303782,3138.5,3137.3,4.06886735]
[1768310215467,0.00303782,3138.5,3137.5,1.084658]
[1768310216470,0.00303782,3138.5,3137.5,3.93657338]
[1768310217464,0.00303782,3138.5,3137.5,4.06886735]
[1768310217966,0.00303782,3138.5,3137.6,2.98420935]
[1768310218473,0.00303782,3138.5,3137.7,1.21695197]
[1768310219270,0.00303782,3138.5,3137.7,0.13229397]
[1768310221674,0.00303782,3138.5,3137.7,2.81429397]
[1768310222277,0.00303782,3138.5,3137.7,2.682]
[1768310227183,0.00303782,3138.5,3137.7,2.81828311]
[1768310230685,0.00303782,3138.5,3137.7,2.682]
[1768310236691,0.00303782,3138.5,3137.7,3.766658]
[1768310237793,0.00303782,3138.5,3137.7,2.682]
[1768310242093,1.084658,3138.2,3137.7,2.682]
[1768310242395,1.084658,3138.2,3137.4,5.53391538]
[1768310242693,1.084658,3138.2,3137.4,2.85191538]
[1768310243496,0.00303782,3138.5,3137.4,2.85191538]
[1768310243999,1.084658,3138.4,3137.4,2.85191538]
[1768310244588,0.00303782,3138.5,3137.4,2.85191538]
[1768310248799,0.00303782,3138.5,3137.5,1.22090584]
[1768310248996,0.00303782,3138.5,3137.5,4.07282122]
[1768310252899,0.00303782,3138.5,3137.5,2.98816322]
[1768310253402,0.00303782,3138.5,3137.6,2.85191538]
[1768310262706,0.00303782,3138.5,3137.6,5.53391538]
[1768310273322,1.08764603,3138.5,3137.6,6.61852359]
[1768310274624,1.08460821,3138.3,3137.6,5.53391538]
[1768310275121,1.08764603,3138.5,3137.6,5.53391538]
[1768310277827,0.00303782,3138.5,3137.6,5.53391538]
[1768310278029,1.08460821,3138.4,3137.6,5.53391538]
[1768310279026,1.08460821,3138.4,3137.7,2.85191538]
[1768310279228,1.08460821,3138.4,3137.6,5.53391538]
[1768310279429,1.08460821,3138.4,3137.7,2.85191538]
[1768310282030,0.00303782,3138.5,3137.6,6.99591538]
[1768310282231,1.08460821,3138.3,3137.6,6.99591538]
[1768310282533,1.08460821,3138.4,3137.7,2.85191538]
[1768310285128,0.00303782,3138.5,3137.7,2.85191538]
[1768310285333,1.08764603,3138.5,3137.7,2.85191538]
[1768310292735,0.00303782,3138.5,3137.7,2.85191538]
[1768310292936,0.00303782,3138.5,3137.7,3.93652359]
[1768310293337,1.08764603,3138.5,3137.7,2.85191538]
[1768310298945,0.00303782,3138.5,3137.7,2.85191538]
[1768310299139,1.08764603,3138.5,3137.7,2.85191538]
[1768310304947,1.08460821,3138.4,3137.7,2.85191538]
[1768310306150,0.00303782,3138.5,3137.7,2.85191538]
[1768310306352,1.08460821,3138.4,3137.7,2.85191538]
[1768310309449,0.00303782,3138.5,3137.7,2.85191538]
[1768310309651,1.08764603,3138.5,3137.7,2.85191538]
[1768310310752,0.00303782,3138.5,3137.7,3.93652359]
[1768310311252,0.00303782,3138.5,3137.7,2.85191538]
[1768310311950,1.08460821,3138.7,3137.8,1.08460821]
[1768310312154,1.08460821,3138.7,3137.8,1.22265161]
[1768310312346,1.08460821,3138.7,3137.8,0.1380434]
[1768310312954,1.08814493,3138.7,3137.8,0.1380434]
[1768310313655,0.00353672,3138.7,3137.9,1.08460821]
[1768310313957,0.00353672,3138.7,3137.9,1.22265161]
[1768310315849,1.08460821,3139.2,3138.4,1.08460821]
[1768310316049,1.08460821,3139.2,3138.2,4.0765008]
[1768310316546,1.08460821,3139.2,3138.2,1.22458542]
[1768310316751,1.08798541,3139.2,3138.2,1.22458542]
[1768310317753,1.08798541,3139.2,3138.2,0.13997721]
[1768310317952,1.08798541,3139.2,3138.2,1.22458542]
[1768310318349,1.08460821,3139.0,3138.2,1.22458542]
[1768310321262,1.08460821,3139.1,3138.2,1.22458542]
[1768310323266,0.0033772,3139.2,3138.2,1.22458542]
[1768310323466,1.08460821,3139.0,3138.2,1.22458542]
[1768310324860,0.0033772,3139.2,3138.2,1.22458542]
[1768310325066,1.08460821,3139.0,3138.2,1.22458542]
[1768310326068,1.08460821,3139.0,3138.1,2.682]
[1768310326268,1.08460821,3139.0,3138.1,3.76660821]
[1768310326972,1.08460821,3139.0,3138.1,2.682]
[1768310327169,1.08460821,3139.0,3138.0,5.58501359]
[1768310327669,1.08460821,3138.9,3138.0,5.58501359]
[1768310329772,1.08460821,3139.0,3138.2,1.08460821]
[1768310331771,1.08460821,3139.1,3138.2,1.08460821]
[1768310332369,1.08460821,3138.4,3138.0,2.85191538]
[1768310332568,1.08460821,3138.2,3137.8,2.85191538]
[1768310332778,1.08460821,3138.2,3137.6,2.85191538]
[1768310332974,1.08460821,3138.2,3137.4,2.682]
[1768310333179,1.08460821,3138.2,3137.5,1.503]
[1768310333376,1.0848033,3138.5,3137.5,1.503]
[1768310334369,1.0848033,3138.5,3137.3,2.85191538]
[1768310334572,1.22541695,3138.6,3137.3,4.35591538]
[1768310337481,0.14061365,3139.0,3137.4,0.13997721]
[1768310337681,1.0848033,3138.8,3137.4,0.13997721]
[1768310337981,1.22541695,3138.8,3137.4,0.13997721]
[1768310339079,1.22541695,3138.8,3137.4,2.82197721]
[1768310340586,1.22541695,3138.5,3137.4,2.682]
[1768310340778,0.14061365,3138.5,3137.4,2.682]
[1768310342786,1.0848033,3138.6,3137.4,2.682]
[1768310344793,1.0848033,3138.6,3137.3,2.682]
[1768310360308,1.0848033,3138.6,3137.3,5.53391538]
[1768310361001,1.0848033,3138.6,3137.3,2.682]
[1768310361308,1.0848033,3138.6,3137.3,5.53391538]
[1768310361901,1.0848033,3138.3,3137.3,2.682]
[1768310362306,1.0848033,3138.3,3137.3,5.53391538]
[1768310362505,1.0848033,3138.3,3137.3,2.85191538]
[1768310374508,1.0848033,3137.8,3137.3,2.85191538]
[1768310374713,1.0848033,3138.6,3136.2,7.38493768]
[1768310374714,2.1696066,3137.4,3136.5,6.85487253]
[1768310375019,2.1696066,3137.4,3136.2,2.85191538]
[1768310375020,1.0848033,3137.1,3136.2,2.85191538]
[1768310375410,1.0848033,3137.1,3136.0,4.52650538]
[1768310375815,1.0848033,3137.1,3136.0,4.5288633]
[1768310376221,1.0848033,3137.2,3136.0,4.5288633]
[1768310376418,1.0848033,3137.2,3136.0,1.67694792]
[1768310378724,1.0848033,3137.4,3136.0,1.67694792]
[1768310380426,1.0848033,3137.4,3136.1,1.0848033]
[1768310381218,1.0848033,3137.6,3136.3,1.0848033]
[1768310381416,1.23032548,3137.6,3136.3,1.0848033]
[1768310382527,1.23032548,3137.6,3136.0,0.16194792]
[1768310382726,1.23032548,3137.6,3136.2,1.0848033]
[1768310383823,1.23032548,3137.6,3136.0,0.16194792]
[1768310384022,1.23032548,3137.6,3136.2,1.0848033]
[1768310387918,0.14552218,3137.5,3136.1,2.682]
[1768310388122,1.23032548,3137.4,3136.1,2.682]
[1768310388325,1.0848033,3137.2,3136.0,0.00235792]
[1768310388930,1.23032548,3137.2,3136.0,0.00235792]
[1768310389434,0.14552218,3137.1,3136.0,0.00235792]
[1768310395435,1.08573621,3136.9,3136.1,1.08573621]
[1768310395639,1.0880403,3136.9,3136.1,1.08573621]
[1768310396842,1.0880403,3136.9,3136.0,0.00235792]
[1768310397044,1.0880403,3136.9,3136.1,1.08573621]
[1768310397342,1.0880403,3136.9,3136.0,0.00235792]
[1768310397534,1.0880403,3136.9,3136.1,1.08573621]
[1768310397735,1.0880403,3136.9,3136.0,0.00235792]
[1768310397932,1.08573621,3136.7,3136.0,0.00235792]
[1768310399546,1.0880403,3136.9,3136.0,1.08809413]
[1768310400346,1.0880403,3136.9,3136.0,0.00235792]
[1768310400540,1.0880403,3136.9,3136.0,1.08809413]
[1768310400839,0.00230409,3136.9,3136.0,1.08809413]
[1768310401944,0.00230409,3136.9,3136.2,1.08573621]
[1768310404847,0.00230409,3136.9,3136.0,0.00235792]
[1768310405145,0.00230409,3136.9,3136.2,1.08573621]
[1768310414148,0.00230409,3136.9,3136.1,1.08573621]
[1768310418353,0.00230409,3136.9,3136.3,1.08573621]
[1768310420056,0.00230409,3136.9,3136.5,1.08573621]
[1768310420258,1.08573621,3137.7,3136.9,1.08573621]
[1768310420466,1.08573621,3137.7,3136.7,1.08573621]
[1768310421362,1.0887749,3137.7,3136.7,1.08573621]
[1768310423256,1.08573621,3137.5,3136.7,1.08573621]
[1768310425468,1.0887749,3137.7,3136.7,1.08573621]
[1768310428866,0.00303869,3137.7,3136.9,1.08573621]
[1768310432363,0.00303869,3137.7,3137.1,1.08573621]
[1768310432966,0.00303869,3137.7,3136.9,1.08573621]
[1768310433269,0.00303869,3137.7,3137.3,1.08573621]
[1768310433567,1.08573621,3138.6,3137.5,1.08573621]
[1768310433759,1.08573621,3138.6,3137.7,1.08573621]
[1768310433961,1.08573621,3138.6,3137.5,1.08573621]
[1768310434367,1.08803092,3138.6,3137.5,1.08573621]
[1768310434568,1.08573621,3138.4,3137.5,1.08573621]
[1768310434767,0.00229471,3138.6,3137.7,1.08573621]
[1768310434962,1.08573621,3138.5,3137.5,1.08573621]
[1768310436368,0.00229471,3138.6,3137.5,1.08573621]
[1768310436570,1.08573621,3138.5,3137.5,1.08573621]
[1768310437670,0.00229471,3138.6,3137.5,1.08573621]
[1768310437871,0.00229471,3138.6,3137.8,1.08573621]
[1768310438666,0.00229471,3138.6,3137.7,1.08573621]
[1768310439372,1.08573621,3138.5,3137.5,1.23113397]
[1768310440968,1.08573621,3138.5,3137.7,1.08573621]
[1768310446986,1.08803092,3138.6,3137.7,1.08573621]
[1768310449082,1.08803092,3138.6,3137.5,0.14539776]
[1768310449274,1.08573621,3138.4,3137.6,1.08573621]
[1768310450380,1.08573621,3138.4,3137.5,0.14539776]
[1768310450580,1.08573621,3138.4,3137.6,1.08573621]
[1768310454178,1.08573621,3138.4,3137.5,0.14539776]
[1768310454383,1.08573621,3138.4,3137.6,1.08573621]
[1768310455283,0.00229471,3138.6,3137.5,0.14539776]
[1768310455581,0.00229471,3138.6,3137.8,1.08462355]
[1768310455781,0.14590836,3139.1,3138.0,1.08462355]
[1768310456188,0.14590836,3139.1,3137.8,1.24412355]
[1768310456486,1.08462355,3139.0,3137.8,0.1595]
[1768310456676,1.08808686,3139.0,3137.8,0.1595]
[1768310457080,1.23399522,3139.0,3137.8,0.1595]
[1768310457284,1.08462355,3138.8,3137.8,0.1595]
[1768310460292,1.23399522,3139.0,3137.8,0.1595]
[1768310461897,0.14937167,3139.0,3137.8,0.1595]
[1768310462389,1.23399522,3139.0,3137.8,0.1595]
[1768310464998,1.23399522,3139.0,3137.8,2.8415]
[1768310471006,0.00346331,3139.0,3137.9,1.08462355]
[1768310471204,0.00346331,3139.0,3137.9,1.24412355]
[1768310479415,0.00346331,3139.0,3137.9,0.1595]
[1768310479615,0.00346331,3139.0,3138.0,1.08462355]
[1768310479814,0.00346331,3139.0,3137.9,0.1595]
[1768310480114,0.00346331,3139.0,3138.0,1.08462355]
[1768310480316,0.00346331,3139.0,3138.3,1.08462355]
[1768310480513,0.00346331,3139.0,3138.3,1.08709669]
[1768310481015,0.00346331,3139.0,3138.3,0.00247314]
[1768310482912,1.07966391,3139.7,3138.8,1.08462355]
[1768310483911,1.0836187,3139.7,3138.8,1.08462355]
[1768310484516,1.0836187,3139.7,3139.1,1.08462355]
[1768310484810,0.14062028,3140.7,3139.2,2.59962355]
[1768310485015,0.14062028,3140.1,3139.0,2.85191538]
[1768310485211,1.08462355,3139.5,3138.5,4.00295715]
[1768310485418,0.14062028,3139.4,3138.0,2.85191538]
[1768310485615,0.14062028,3139.1,3137.8,4.36691538]
[1768310486815,0.14062028,3139.1,3138.0,1.08462355]
[1768310487032,0.00408812,3139.4,3138.3,1.08709669]
[1768310487512,0.00408812,3139.4,3138.6,1.08462355]
[1768310490113,0.00408812,3139.4,3138.5,1.08462355]
[1768310490718,0.00408812,3139.4,3138.3,0.00247314]
[1768310490922,0.00408812,3139.4,3138.3,1.08709669]
[1768310495825,0.00408812,3139.4,3138.5,1.08462355]
[1768310499522,0.00408812,3139.4,3138.3,2.85438852]
[1768310499729,0.00408812,3139.4,3138.3,3.93901207]
[1768310500127,0.14529782,3139.4,3138.3,0.00247314]
[1768310503526,0.1412097,3138.9,3138.3,0.00247314]
[1768310503729,0.1412097,3138.9,3137.6,4.16246715]
[1768310503730,1.22583325,3138.7,3137.6,4.00295715]
[1768310503929,1.22583325,3138.7,3137.3,5.45153893]
[1768310504723,1.22583325,3138.7,3137.3,5.45384938]
[1768310505023,0.1412097,3138.7,3137.3,5.45384938]
[1768310505225,0.1412097,3138.7,3137.5,1.08462355]
[1768310505831,0.1412097,3138.7,3137.4,1.08462355]
[1768310506535,0.1412097,3138.7,3137.3,0.00231045]
[1768310506727,0.1412097,3138.7,3137.3,1.086934]
[1768310507127,0.1412097,3138.6,3137.3,1.086934]
[1768310507830,0.1412097,3138.3,3137.3,0.00231045]
[1768310508033,0.1412097,3138.1,3137.3,0.00231045]
[1768310514039,0.1412097,3137.9,3136.2,2.99667152]
[1768310514344,1.22583325,3137.8,3136.6,1.08462355]
[1768310514638,0.1412097,3137.8,3136.6,1.08462355]
[1768310515032,0.1412097,3137.8,3136.6,1.08736892]
[1768310515542,0.1412097,3137.6,3136.6,0.00274537]
[1768310517337,1.22664775,3137.5,3136.6,1.08818342]
[1768310519939,1.08543805,3137.7,3136.8,1.08543805]
[1768310520439,1.22664775,3137.9,3137.0,1.08543805]
[1768310521038,0.1412097,3137.9,3137.2,1.08543805]
[1768310521244,0.1412097,3138.3,3137.4,1.08543805]
[1768310523548,0.1412097,3138.3,3137.6,1.08543805]
[1768310524842,1.08543805,3138.5,3137.7,1.08543805]
[1768310527344,1.08543805,3138.5,3137.5,1.08543805]
[1768310532150,0.15944,3139.1,3137.9,1.08543805]
[1768310532151,1.08543805,3138.9,3137.9,1.08543805]
[1768310534050,1.08543805,3138.7,3137.9,1.08543805]
[1768310537066,1.23205055,3139.0,3138.1,1.08543805]
[1768310537359,0.1466125,3139.0,3138.2,1.08543805]
[1768310537562,1.33,3139.2,3138.4,1.08543805]
[1768310537853,1.33,3139.2,3138.6,1.08543805]
[1768310538060,1.33,3139.2,3138.4,1.08543805]
[1768310539061,1.33,3139.2,3138.6,1.08543805]
[1768310539262,3.19408812,3139.4,3138.6,1.08543805]
[1768310539463,0.00408812,3139.4,3138.6,1.08543805]
[1768310539663,0.00408812,3139.4,3138.8,1.08543805]
[1768310539957,0.00161573,3139.4,3138.8,1.08957024]
[1768310540164,0.00161573,3139.4,3138.8,0.00413219]
[1768310540554,1.08705378,3139.4,3138.8,0.00413219]
[1768310540866,0.00161573,3139.4,3138.8,0.00413219]
[1768310543357,1.08543805,3139.1,3138.8,0.00413219]
[1768310544169,1.08543805,3139.1,3138.1,1.24492805]
[1768310544368,1.08543805,3139.1,3138.1,3.92692805]
[1768310544559,1.08543805,3138.9,3137.8,1.08543805]
[1768310544854,1.08543805,3138.9,3138.0,1.08543805]
[1768310545054,1.08543805,3138.9,3138.0,0.00313125]
[1768310545466,1.08543805,3138.7,3138.0,0.00313125]
[1768310545766,1.08543805,3138.8,3138.0,0.00313125]
[1768310547267,1.08543805,3138.8,3138.0,1.0885693]
[1768310547569,1.08543805,3138.8,3138.0,0.00313125]
[1768310547767,1.08543805,3138.8,3138.0,1.0885693]
[1768310549367,0.13247251,3139.0,3138.0,1.0885693]
[1768310549556,1.08543805,3138.9,3138.0,1.0885693]
[1768310550168,0.13247251,3139.0,3138.0,1.0885693]
[1768310550368,1.08543805,3138.9,3138.0,1.0885693]
[1768310556872,0.13247251,3139.0,3138.0,1.0885693]
[1768310557077,1.08543805,3138.9,3138.0,1.0885693]
[1768310557980,1.08543805,3138.9,3138.1,1.08543805]
[1768310561581,1.08543805,3138.9,3138.0,0.00313125]
[1768310561782,1.08543805,3138.9,3138.1,1.08543805]
[1768310564077,1.08543805,3138.9,3138.0,1.0885693]
[1768310565685,1.08543805,3139.1,3138.2,1.08543805]
[1768310566081,1.08543805,3139.3,3138.4,1.08543805]
[1768310566275,0.00161573,3139.4,3138.6,1.08543805]
[1768310566785,0.00161573,3139.4,3138.8,1.08543805]
[1768310566986,1.08543805,3139.7,3138.8,1.08543805]
[1768310567888,1.08817041,3139.7,3138.8,1.08543805]
[1768310569182,1.08543805,3139.5,3138.8,1.08543805]
[1768310569988,1.08543805,3139.5,3138.6,1.08543805]
[1768310574885,1.08543805,3139.5,3138.2,0.14519517]
[1768310575085,1.08543805,3139.5,3138.6,1.08543805]
[1768310576594,1.08543805,3139.1,3138.2,1.08543805]
[1768310577489,1.08543805,3138.9,3138.0,0.00313125]
[1768310577693,1.08543805,3138.9,3138.0,1.0885693]
[1768310579493,1.08438193,3139.2,3138.0,0.00313125]
[1768310581596,0.13640064,3139.1,3138.0,0.00313125]
[1768310582995,1.08438193,3138.8,3138.0,0.00313125]
[1768310583186,0.13640064,3138.9,3138.0,0.00313125]
[1768310595002,0.13299434,3139.3,3138.0,1.08751318]
[1768310605206,0.13299434,3139.3,3138.2,1.08438193]
[1768310605404,1.46628248,3139.7,3138.2,1.08438193]
[1768310605710,1.95517889,3139.6,3138.2,1.08438193]
[1768310605897,0.13828248,3139.7,3138.5,1.08438193]
[1768310608814,0.00273236,3139.7,3138.5,1.08438193]
[1768310611313,0.00273236,3139.7,3138.6,0.13811576]
[1768310611710,0.00273236,3139.7,3138.5,1.08438193]
[1768310614823,0.00273236,3139.7,3138.3,1.08438193]
[1768310618021,1.08711429,3139.7,3138.3,1.08438193]
[1768310618222,1.08711429,3139.7,3138.3,1.21773381]
[1768310620325,1.08711429,3139.7,3138.3,3.89973381]
[1768310626225,1.08711429,3139.7,3138.4,2.682]
[1768310628437,1.23083909,3139.7,3138.4,2.682]
[1768310629237,1.08438193,3139.5,3138.4,2.682]
[1768310630751,1.23083909,3139.7,3138.4,2.682]
[1768310632051,1.23083909,3139.7,3138.3,2.682]
[1768310634552,1.23083909,3139.7,3138.3,5.53391538]
[1768310636562,1.23083909,3139.7,3138.4,1.08438193]
[1768310637858,1.08711429,3139.7,3138.4,1.21773381]
[1768310638159,0.00273236,3139.7,3138.4,3.89973381]
[1768310638357,0.00273236,3139.7,3138.5,0.13335188]
[1768310638858,1.08711429,3139.7,3138.4,3.76638193]
[1768310639057,1.08711429,3139.7,3138.4,2.682]
[1768310640359,1.08438193,3139.5,3138.4,2.682]
[1768310640755,1.22810673,3139.5,3138.4,2.682]
[1768310641451,1.08426939,3139.2,3138.4,2.682]
[1768310642660,1.08426939,3139.0,3138.4,2.682]
[1768310642961,1.08426939,3139.0,3138.2,1.08426939]
[1768310643162,1.08426939,3139.2,3138.2,1.08426939]
[1768310643959,1.08426939,3138.9,3138.1,2.682]
[1768310644359,1.08426939,3139.0,3138.2,1.08426939]
[1768310647258,1.08426939,3139.3,3138.4,1.08426939]
[1768310649066,1.08426939,3139.6,3138.8,1.08426939]
[1768310650267,1.08426939,3139.6,3138.6,1.08426939]
[1768310650759,1.08426939,3139.6,3138.4,0.14200585]
[1768310650960,1.08426939,3139.6,3138.6,1.08426939]
[1768310651159,1.08426939,3139.4,3138.6,1.08426939]
[1768310652167,1.08426939,3139.5,3138.6,1.08426939]
[1768310666378,0.00273236,3139.7,3138.6,1.08426939]
[1768310666567,1.08426939,3139.5,3138.6,1.08426939]
[1768310668783,0.00273236,3139.7,3138.6,1.08426939]
[1768310669081,1.08426939,3139.6,3138.6,1.08426939]
[1768310670683,1.08426939,3139.6,3138.4,0.14200585]
[1768310670982,1.08426939,3139.6,3138.7,1.08426939]
[1768310675783,0.00273236,3139.7,3138.7,1.08426939]
[1768310676289,1.08426939,3139.6,3138.7,1.08426939]
[1768310676785,0.00273236,3139.7,3138.7,1.2199284]
[1768310676990,0.00273236,3139.7,3139.0,1.08426939]
[1768310677176,0.00273236,3139.7,3138.7,0.13565901]
[1768310677384,0.00273236,3139.7,3138.7,1.2199284]
[1768310677583,1.08700175,3139.7,3138.7,1.2199284]
[1768310677992,1.08426939,3139.3,3138.5,2.85191538]
[1768310678187,1.08426939,3139.3,3138.5,1.08426939]
[1768310678395,1.08426939,3139.3,3138.3,3.93618477]
[1768310678697,1.08426939,3138.9,3138.0,6.85800378]
[1768310678887,1.08426939,3138.7,3138.0,0.00313125]
[1768310679192,0.13424269,3139.0,3138.0,0.00313125]
[1768310679398,1.08426939,3138.9,3138.0,1.08740064]
[1768310679997,0.13424269,3139.0,3138.0,0.00313125]
[1768310679998,1.08426939,3138.7,3138.0,0.00313125]
[1768310680998,1.08426939,3138.9,3138.0,1.08740064]
[1768310683402,0.13424269,3139.4,3138.2,1.08426939]
[1768310683596,0.87134491,3139.3,3138.6,1.08426939]
[1768310683802,1.08426939,3139.6,3138.6,1.08426939]
[1768310688199,1.32573236,3139.7,3138.8,1.08426939]
[1768310688606,0.00273236,3139.7,3138.8,1.08426939]
[1768310691696,0.00273236,3139.7,3139.0,1.08426939]
[1768310692302,0.0002168,3139.7,3139.2,1.08426939]
[1768310692608,0.0002168,3139.7,3139.0,1.08426939]
[1768310699214,0.0002168,3139.7,3139.2,1.08426939]
[1768310700115,0.0002168,3139.7,3138.7,2.81765901]
[1768310700312,0.0002168,3139.7,3139.2,1.08426939]
[1768310700803,0.0002168,3139.7,3139.4,1.08426939]
[1768310701409,0.0002168,3139.7,3139.2,0.13565901]
[1768310702215,0.0002168,3139.7,3138.8,2.81765901]
[1768310702612,0.0002168,3139.7,3138.8,2.682]
[1768310702820,1.08355215,3139.6,3138.8,2.682]
[1768310705320,1.08355215,3139.6,3138.2,2.682]
[1768310705520,0.13217939,3139.7,3138.3,2.682]
[1768310705723,1.08355215,3139.6,3138.3,2.682]
[1768310706323,1.08355215,3139.6,3138.3,3.76555215]
[1768310706519,1.08355215,3139.6,3138.3,1.08355215]
[1768310707026,1.08355215,3139.6,3138.2,2.682]
[1768310707223,1.08355215,3139.6,3138.2,3.76555215]
[1768310707724,1.08355215,3139.6,3138.2,3.89752487]
[1768310707921,0.0002168,3139.7,3138.4,1.21552487]
[1768310708225,0.0002168,3139.7,3138.5,0.13197272]
[1768310712729,0.0002168,3139.7,3138.7,1.08355215]
[1768310714126,0.0002168,3139.7,3138.7,1.21552487]
[1768310715017,0.0002168,3139.7,3138.8,0.13197272]
[1768310726238,0.0002168,3139.7,3138.8,1.21552487]
[1768310728035,0.0002168,3139.7,3138.9,0.13653242]
[1768310728230,0.0002168,3139.7,3139.1,1.08355215]
[1768310732634,1.37911872,3141.2,3139.5,0.13653242]
[1768310732831,0.87231162,3141.1,3139.7,1.08355215]
[1768310733031,0.87231162,3141.0,3139.7,1.08355215]
[1768310733242,1.95586377,3140.9,3139.7,1.08355215]
[1768310733536,1.08355215,3140.9,3139.7,1.08355215]
[1768310733845,1.08587267,3140.9,3139.7,1.08355215]
[1768310734439,1.08587267,3140.9,3139.5,1.22008457]
[1768310735638,1.08587267,3140.9,3139.5,0.13653242]
[1768310735840,1.23065999,3140.9,3139.5,0.13653242]
[1768310736039,1.08355215,3140.7,3139.5,0.13653242]
[1768310736839,1.08355215,3140.7,3139.3,5.27855215]
[1768310737157,1.08355215,3140.7,3139.3,2.682]
[1768310737447,1.08355215,3140.5,3139.1,3.89900953]
[1768310738548,1.22833947,3140.7,3139.2,0.13345738]
[1768310739543,1.22833947,3140.7,3139.3,1.08355215]
[1768310742450,0.14478732,3140.6,3139.3,1.08355215]
[1768310743553,1.08355215,3140.7,3139.3,1.21700953]
[1768310744349,0.00232052,3140.9,3139.4,0.13345738]
[1768310744551,1.08355215,3140.7,3139.4,0.13345738]
[1768310745656,0.14710784,3140.9,3139.4,0.13345738]
[1768310745857,1.95852009,3140.8,3139.4,0.13345738]
[1768310746050,1.08355215,3140.8,3139.4,0.13345738]
[1768310746458,1.08355215,3140.8,3139.4,2.81545738]
[1768310747360,1.08355215,3140.8,3139.5,1.08355215]
[1768310748055,0.14478732,3140.5,3139.4,2.682]
[1768310748260,1.22833947,3140.5,3139.4,2.682]
[1768310749460,0.14478732,3140.5,3139.4,2.682]
[1768310751665,0.14478732,3140.5,3139.4,3.76555215]
[1768310751861,0.14710784,3140.9,3139.4,3.76555215]
[1768310752062,0.87681219,3140.8,3139.4,2.682]
[1768310752263,0.87681219,3140.8,3139.1,0.13345738]
[1768310752264,0.87681219,3140.7,3139.5,1.08355215]
[1768310752463,0.14710784,3140.9,3139.5,1.08355215]
[1768310752666,0.8768651,3140.8,3139.5,1.08355215]
[1768310752859,0.14710784,3140.9,3139.5,1.08355215]
[1768310753059,0.87686494,3140.8,3139.5,1.08355215]
[1768310753263,0.87686494,3140.7,3139.5,1.08355215]
[1768310753460,0.14710784,3140.9,3139.4,0.13345738]
[1768310753665,0.87696813,3140.8,3139.5,1.08355215]
[1768310753856,0.14710784,3140.9,3139.5,1.08355215]
[1768310754060,0.87696811,3140.8,3139.5,1.08355215]
[1768310754368,0.14710784,3140.9,3139.5,1.21700953]
[1768310754667,0.87704498,3140.8,3139.5,1.21700953]
[1768310754861,0.14710784,3140.9,3139.5,1.21700953]
[1768310755055,0.87704478,3140.8,3139.5,1.21700953]
[1768310755259,0.14710784,3140.9,3139.5,1.21700953]
[1768310755568,0.87713671,3140.8,3139.5,1.21700953]
[1768310755870,0.14710784,3140.9,3139.5,1.21700953]
[1768310756166,0.87713675,3140.8,3139.5,1.21700953]
[1768310756465,0.14710784,3140.9,3139.5,1.21700953]
[1768310756665,0.87724784,3140.8,3139.5,1.21700953]
[1768310756866,0.14710784,3140.9,3139.5,1.21700953]
[1768310757066,0.87724419,3140.8,3139.5,1.21700953]
[1768310757368,0.14710784,3140.9,3139.5,0.13345738]
[1768310757668,0.87737072,3140.8,3139.5,1.21700953]
[1768310757871,0.14710784,3140.9,3139.5,1.21700953]
[1768310758064,0.87737071,3140.8,3139.5,1.21700953]
[1768310758372,0.14710784,3140.9,3139.5,1.21700953]
[1768310758668,0.87752901,3140.8,3139.5,1.21700953]
[1768310758868,0.14710784,3140.9,3139.5,1.21700953]
[1768310759173,0.87752928,3140.8,3139.5,1.21700953]
[1768310759470,0.87769333,3140.7,3139.5,1.21700953]
[1768310759673,0.14710784,3140.9,3139.5,1.21700953]
[1768310759972,0.87771029,3140.8,3139.5,1.21700953]
[1768310760274,0.87771029,3140.7,3139.5,1.21700953]
[1768310760473,0.14710784,3140.9,3139.5,1.21700953]
[1768310760676,0.87791198,3140.8,3139.5,1.21700953]
[1768310760972,0.87791198,3140.7,3139.5,1.21700953]
[1768310761164,0.14710784,3140.9,3139.5,0.13345738]
[1768310761361,0.87811047,3140.8,3139.5,0.13345738]
[1768310761566,0.87811047,3140.7,3139.5,0.13345738]
[1768310761875,0.14710784,3140.9,3139.5,0.13345738]
[1768310762073,0.87811048,3140.8,3139.5,0.13345738]
[1768310762266,0.87811048,3140.7,3139.5,0.13345738]
[1768310762468,0.14710784,3140.9,3139.5,0.13345738]
[1768310762666,0.87824151,3140.8,3139.5,0.13345738]
[1768310762867,0.87824151,3140.7,3139.5,0.13345738]
[1768310763074,0.14710784,3140.9,3139.5,0.13345738]
[1768310763271,0.87826089,3140.8,3139.5,0.13345738]
[1768310763476,1.9615209,3140.7,3139.8,1.08326001]
[1768310763771,0.14710784,3140.9,3139.8,1.08326001]
[1768310763972,1.08326001,3140.6,3139.8,1.08326001]
[1768310764475,1.08326001,3140.8,3139.8,1.08326001]
[1768310764680,0.87827958,3140.7,3139.8,1.08326001]
[1768310764864,1.08326001,3140.8,3139.8,1.08326001]
[1768310765070,0.87827893,3140.7,3139.8,1.08326001]
[1768310765377,1.08326001,3140.8,3139.8,1.08326001]